Workbook

Sheet Cost estimate
A1: ANNEXURE B:- PRICING SCHEDULE
A2: Bidders must only complete the Pricing Schedule (Annexure B) electronically in Excel and submit in PDF or a scanned copy of PDF format. Hand-written or manual completion of Annexure B will result in the bidder being disqualified. Any changes to the Pricing Schedule, Annexure B, (for the exception of the cells highlighted in yellow only) made by the bidder will result in the bidder being disqualified.
A3: Only the cells highlighted in yellow must be completed.
A4: BIDDER'S NAME:-
A5: ITEM NO | B5: DESCRIPTION | C5: CONTRACT INDICATIVE VOLUMES | E5: DELIVERY REQUIREMENTS | F5: PRICING STRUCTURE | G5: UNIT COST / PACK COST EXCL. VAT | H5: CONTRACT INDICATIVE COST EXCL. VAT
A6: BATTERIES
A7: 1 | B7: AA | C7: 250 | D7: units | E7: Per pack of 4 | F7: Cost per pack of 4 | H7: =G7*(C7) -> R 0.00
A8: =A7+1 -> 2 | B8: AAA | C8: 250 | D8: units | E8: Per pack of 8 | F8: Cost per pack of 8 | H8: =G8*(C8) -> R 0.00
A9: RECORDING DEVICES
A10: =A8+1 -> 3 | B10: Electronic dictaphones | C10: 9 | D10: units | E10: units | F10: Cost per unit | H10: =C10*G10 -> R 0.00
A11: IDENTIFICATION
A12: =A10+1 -> 4 | B12: Name Badge (per pack of 50) | C12: 15 | D12: Packs | E12: Per pack of 50 | F12: Cost per pack of 50 | H12: =G12*C12 -> R 0.00
A13: =A12+1 -> 5 | B13: Licence card Holder (per pack of 50) | C13: 10 | D13: Packs | E13: Per pack of 50 | F13: Cost per pack of 50 | H13: =G13*C13 -> R 0.00
A14: =A13+1 -> 6 | B14: Lanyard "plastic zipper in blue" (per pack of 50) | C14: 30 | D14: Packs | E14: Per pack of 50 | F14: Cost per pack of 50 | H14: =G14*C14 -> R 0.00
A15: GEL PENS
A16: =A14+1 -> 7 | B16: Ball Point Pen Black (0.7) | C16: 180 | D16: Boxes | E16: Per box of 12 | F16: Cost per box of 12 | H16: =G16*C16 -> R 0.00
A17: =A16+1 -> 8 | B17: Ball Point Pen Blue (0.5) | C17: 180 | D17: Boxes | E17: Per box of 12 | F17: Cost per box of 12 | H17: =G17*C17 -> R 0.00
A18: =A17+1 -> 9 | B18: Ball Point Pen Red (0.5) | C18: 100 | D18: Boxes | E18: Per box of 12 | F18: Cost per box of 12 | H18: R 0.00
A19: 10 | B19: Ball Point Pen Green (0.7) | C19: 100 | D19: Boxes | E19: Per box of 12 | F19: Cost per box of 12 | H19: R 0.00
A20: PENCILS AND INSTRUMENTS
A21: =A19+1 -> 11 | B21: Clutch Pencil HB 0.5 | C21: 60 | D21: Boxes | E21: Per box of 12 | F21: Cost per box of 12 | H21: =G21*C21 -> R 0.00
A22: =A21+1 -> 12 | B22: Clutch Pencil HB 0.7 | C22: 60 | D22: Boxes | E22: Per box of 12 | F22: Cost per box of 12 | H22: =G22*C22 -> R 0.00
A23: =A22+1 -> 13 | B23: Tradition Pencil HB | C23: 60 | D23: Boxes | E23: Per box of 12 | F23: Cost per box of 12 | H23: R 0.00
A24: 14 | B24: HI-Polymer Eraser Small | C24: 200 | D24: units | E24: Per unit | F24: Cost per unit | H24: =G24*C24 -> R 0.00
A25: 15 | B25: 1 Hole Metal Sharpener | C25: 200 | D25: units | E25: Per unit | F25: Cost per unit | H25: =G25*C25 -> R 0.00
A26: LEADS
A27: =A25+1 -> 16 | B27: Clutch pencil leads 0.5mm | C27: 100 | D27: units | E27: Per unit | F27: Cost per unit | H27: =G27*C27 -> R 0.00
A28: =A27+1 -> 17 | B28: Clutch pencil leads 0.7mm | C28: 100 | D28: units | E28: Per unit | F28: Cost per unit | H28: =G28*C28 -> R 0.00
A29: CORRECTION TAPE & FLUID (PEN)
A30: =A28+1 -> 18 | B30: Correction Fluid | C30: 60 | D30: units | E30: Per unit | F30: cost per unit | H30: =G30*C30 -> R 0.00
A31: =A30+1 -> 19 | B31: Correction Tape | C31: 60 | D31: units | E31: Per unit | F31: cost per unit | H31: =G31*C31 -> R 0.00
A32: HIGHLIGHTERS
A33: =A31+1 -> 20 | B33: Highlighter Blue | C33: 50 | D33: Boxes | E33: Per box of 10 | F33: Cost per box of 10 | H33: =G33*C33 -> R 0.00
A34: =A33+1 -> 21 | B34: Highlighter Yellow | C34: 50 | D34: Boxes | E34: Per box of 10 | F34: Cost per box of 10 | H34: =G34*C34 -> R 0.00
A35: =A34+1 -> 22 | B35: Highlighter Green | C35: 50 | D35: Boxes | E35: Per box of 10 | F35: Cost per box of 10 | H35: R 0.00
A36: 23 | B36: Highlighter Orange | C36: 50 | D36: Boxes | E36: Per box of 10 | F36: Cost per box of 10 | H36: R 0.00
A37: 24 | B37: Highlighter Pink | C37: 50 | D37: Boxes | E37: Per box of 10 | F37: Cost per box of 10 | H37: R 0.00
A38: 25 | B38: Highlighter Red | C38: 50 | D38: Boxes | E38: Per box of 10 | F38: Cost per box of 10 | H38: =G38*C38 -> R 0.00
A39: PERMANENT MARKERS
A40: =A38+1 -> 26 | B40: Permanent Marker 70 Black | C40: 40 | D40: Boxes | E40: Per box of 10 | F40: Cost per box of 10 | H40: =G40*C40 -> R 0.00
A41: =A40+1 -> 27 | B41: Permanent Marker 70 Blue | C41: 40 | D41: Boxes | E41: Per box of 10 | F41: Cost per box of 10 | H41: =G41*C41 -> R 0.00
A42: =A41+1 -> 28 | B42: Permanent Marker 70 Red | C42: 40 | D42: Boxes | E42: Per box of 10 | F42: Cost per box of 10 | H42: R 0.00
A43: WHITE BOARD MARKERS
A44: =A42+1 -> 29 | B44: Whiteboard Marker Black | C44: 60 | D44: Boxes | E44: Per box of 10 | F44: Cost per box of 10 | H44: =G44*C44 -> R 0.00
A45: =A44+1 -> 30 | B45: Whiteboard Marker Blue | C45: 60 | D45: Boxes | E45: Per box of 10 | F45: Cost per box of 10 | H45: =G45*C45 -> R 0.00
A46: =A45+1 -> 31 | B46: Whiteboard Marker Red | C46: 60 | D46: Boxes | E46: Per box of 10 | F46: Cost per box of 10 | H46: R 0.00
A47: 32 | B47: Whiteboard Marker | C47: 60 | D47: Boxes | E47: Per box of 10 | F47: Cost per box of 10 | H47: R 0.00
A48: =A47+1 -> 33 | B48: Whiteboard Marker Green | C48: 60 | D48: Boxes | E48: Per box of 10 | F48: Cost per box of 10 | H48: R 0.00
A49: 34 | B49: Whiteboard Eraser | C49: 100 | D49: units | E49: Per unit | F49: Cost per unit | H49: =G49*C49 -> R 0.00
A50: 35 | B50: Whiteboard Cleaning Fluid Spray | C50: 80 | D50: units | E50: Per unit | F50: Cost per unit | H50: R 0.00
A51: WHITE BOARDS
A52: =A50+1 -> 36 | B52: Whiteboard Mobile 1800 x 1200mm | C52: 5 | D52: units | E52: Per unit | F52: Cost per unit | H52: =G52*C52 -> R 0.00
A53: =A52+1 -> 37 | B53: Whiteboard A2 Non-magnetic | C53: 26 | D53: units | E53: Per unit | F53: Cost per unit | H53: =G53*C53 -> R 0.00
A54: =A53+1 -> 38 | B54: A4 Poster slimline silver | C54: 50 | D54: units | E54: Per unit | F54: Cost per unit | H54: R 0.00
A55: 39 | B55: A3 Poster slimline silver | C55: 50 | D55: units | E55: Per unit | F55: Cost per unit | H55: R 0.00
A56: 40 | B56: Whiteboard Flipchart Standard Model | C56: 15 | D56: units | E56: Per unit | F56: Cost per unit | H56: R 0.00
A57: DESKTOP STATIONERY (HIGH QUALITY)
A58: =A56+1 -> 41 | B58: Prestik 100g | C58: 100 | D58: units | E58: Per pack of 4 | F58: Cost per unit | H58: =G58*C58 -> R 0.00
A59: =A58+1 -> 42 | B59: Glue Stick 20g | C59: 150 | D59: units | E59: Per pack of 4 | F59: Cost per unit | H59: =G59*C59 -> R 0.00
A60: =A59+1 -> 43 | B60: Scissors 170 mm | C60: 250 | D60: units | E60: Per unit | F60: Cost per unit | H60: =G60*C60 -> R 0.00
A61: 44 | B61: Scissors 210 mm | C61: 150 | D61: units | E61: Per unit | F61: Cost per unit | H61: =G61*C61 -> R 0.00
A62: 45 | B62: Desktop DK-238 Calculator 12-Digit | C62: 100 | D62: units | E62: Per unit | F62: Cost per unit | H62: R 0.00
A63: 46 | B63: Letter Trays (Set of 2) | C63: 50 | D63: sets | E63: Per set | F63: Cost per set | H63: R 0.00
A64: RULERS
A65: =A63+1 -> 47 | B65: 30mm Ruler CLEAR | C65: 200 | D65: units | E65: units | F65: Cost per unit | H65: =G65*C65 -> R 0.00
A66: STAPLERS
A67: =A65+1 -> 48 | B67: Stapler - N. 56 | C67: 200 | D67: units | E67: units | F67: cost per unit | H67: =G67*C67 -> R 0.00
A68: =A67+1 -> 49 | B68: Stapler - N. 66 | C68: 30 | D68: units | E68: units | F68: cost per unit | H68: =G68*C68 -> R 0.00
A69: STAPLES
A70: =A68+1 -> 50 | B70: Staple Remover | C70: 200 | D70: units | E70: units | F70: cost per unit | H70: =G70*C70 -> R 0.00
A71: =A70+1 -> 51 | B71: Staples No 56. | C71: 150 | D71: boxes | E71: Boxes | F71: cost per box | H71: R 0.00
A72: =A71+1 -> 52 | B72: Staples No. 66 | C72: 30 | D72: boxes | E72: Boxes | F72: cost per box | H72: R 0.00
A73: PUNCHES
A74: =A72+1 -> 53 | B74: Punch P225 | C74: 250 | D74: units | E74: units | F74: cost per unit | H74: =G74*C74 -> R 0.00
A75: =A74+1 -> 54 | B75: Punch DP800 Heavy Duty 2 hole | C75: 5 | D75: units | E75: units | F75: cost per unit | H75: =G75*C75 -> R 0.00
A76: PAPER CLIPS
A77: =A75+1 -> 55 | B77: Paper Clips 33mm (100 pcs in a box) coloured | C77: 50 | D77: boxes | E77: Per box of 100 | F77: cost per box | H77: =G77*C77 -> R 0.00
A78: =A77+1 -> 56 | B78: Paper Clips 50mm (100 pcs in a box) coloured | C78: 50 | D78: boxes | E78: Per box of 100 | F78: cost per box | H78: =G78*C78 -> R 0.00
A79: =A78+1 -> 57 | B79: Paper Clips 78mm (100 pcs in a box) | C79: 50 | D79: boxes | E79: Per box of 100 | F79: cost per box | H79: R 0.00
A80: FOLDBACK CLIPS
A81: =A79+1 -> 58 | B81: Foldback Clips small 19mm (12 pieces per box) | C81: 100 | D81: boxes | E81: Per box of 12 | F81: cost per box | H81: =G81*C81 -> R 0.00
A82: =A81+1 -> 59 | B82: Foldback Clips medium 32mm (12 pieces per box) | C82: 100 | D82: boxes | E82: Per box of 12 | F82: cost per box | H82: =G82*C82 -> R 0.00
A83: =A82+1 -> 60 | B83: Foldback Clips large 51 mm (12 pieces per box) | C83: 100 | D83: boxes | E83: Per box of 12 | F83: cost per box | H83: R 0.00
A84: POST-IT NOTES
A85: =A83+1 -> 61 | B85: Post-it 38mmx51mm (small) | C85: 100 | D85: packs | E85: Per pack of 4 | F85: Cost per pack of 4 | H85: =G85*C85 -> R 0.00
A86: =A85+1 -> 62 | B86: Post-it 75mmx75mm (medium) | C86: 100 | D86: packs | E86: Per pack of 4 | F86: Cost per pack of 4 | H86: =G86*C86 -> R 0.00
A87: POST-IT FLAGS
A88: =A86+1 -> 63 | B88: Post-It Sign Here Flags | C88: 100 | D88: packs | E88: Per pack of 4 | F88: Cost per pack of 4 | H88: =G88*C88 -> R 0.00
A89: =A88+1 -> 64 | B89: Post-It Flag Bright (4 per pack) | C89: 100 | D89: packs | E89: Per pack of 4 | F89: Cost per pack of 4 | H89: =G89*C89 -> R 0.00
A90: =A89+1 -> 65 | B90: Post-It Flag Standard (4 per pack) | C90: 100 | D90: packs | E90: Per pack of 4 | F90: Cost per pack of 4 | H90: R 0.00
A91: STICKY TAPES
A92: =A90+1 -> 66 | B92: Sellotape Clear Tape (12mmx25mm) | C92: 50 | D92: units | E92: Per unit | F92: Cost per unit | H92: R 0.00
A93: =A92+1 -> 67 | B93: Sellotape Packing Tape Clear (48mmx50m) | C93: 30 | D93: units | E93: Per unit | F93: Cost per unit | H93: R 0.00
A94: =A93+1 -> 68 | B94: Buff tape (Brown) (48mmx50m) | C94: 30 | D94: units | E94: Per unit | F94: Cost per unit | H94: R 0.00
A95: 69 | B95: Duct tape silver (48mmx50m) | C95: 30 | D95: units | E95: Per unit | F95: Cost per unit | H95: R 0.00
A96: ELASTIC BANDS
A97: =A95+1 -> 70 | B97: Elastic Bands Size 77 (100 per pack/box) | C97: 5 | D97: packs | E97: 200 in a packet | F97: Cost per pack of 200 | H97: =G97*C97 -> R 0.00
A98: =A97+1 -> 71 | B98: Elastic Bands Size 14 (100 per pack/box) | C98: 5 | D98: packs | E98: 200 in a packet | F98: Cost per pack of 200 | H98: R 0.00
A99: BOOKS
A100: =A98+1 -> 72 | B100: A4 Hard Cover book (192 pages) | C100: 900 | D100: units | E100: Per unit | F100: Cost per unit | H100: =G100*C100 -> R 0.00
A101: =A100+1 -> 73 | B101: A5 Hard Cover Note Book (192 pages) | C101: 900 | D101: units | E101: Per units | F101: cost per unit | H101: R 0.00
A102: =A101+1 -> 74 | B102: Examination Pad A4 100 pages | C102: 900 | D102: units | E102: Per units | F102: cost per unit | H102: R 0.00
A103: 75 | B103: Examination Pad A5 100 pages | C103: 900 | D103: units | E103: units | F103: cost per unit | H103: R 0.00
A104: CUBE MEMO
A105: =A103+1 -> 76 | B105: Memo Cube plastic holder app. 100mm x 100mm x 100mm | C105: 100 | D105: units | E105: Per units | F105: cost per unit | H105: =G105*C105 -> R 0.00
A106: =A105+1 -> 77 | B106: Memo Cube Refills 96 mm x 96 mm x 100 pages | C106: 200 | D106: packs | E106: Per packs | F106: cost per pack of 100 | H106: R 0.00
A107: REGISTERS & MINUTES
A108: =A106+1 -> 78 | B108: Attendance Register 32 pages. (Appendix 4) | C108: 20 | D108: units | E108: Per units | F108: cost per unit | H108: =G108*C108 -> R 0.00
A109: =A108+1 -> 79 | B109: Order book (Appendix 5) | C109: 150 | D109: units | E109: Per units | F109: cost per unit | H109: R 0.00
A110: =A109+1 -> 80 | B110: Pool Vehicle book (Appendix 6) | C110: 50 | D110: units | E110: Per units | F110: cost per unit | H110: R 0.00
A111: DISPLAY FILES & FOLDERS
A112: =A110+1 -> 81 | B112: Carry Folder assorted colour | C112: 200 | D112: units | E112: Pack of 10 | F112: cost per unit | H112: =G112*C112 -> R 0.00
A113: =A112+1 -> 82 | B113: A4 PVC Quotation Folder assorted colour | C113: 200 | D113: units | E113: Pack of 10 | F113: cost per unit | H113: R 0.00
A114: =A113+1 -> 83 | B114: Blue files small (25mm) | C114: 200 | D114: units | E114: Box of 10 | F114: cost per unit | H114: R 0.00
A115: 84 | B115: Blue file medium (40mm) | C115: 200 | D115: units | E115: Box of 10 | F115: cost per unit | H115: R 0.00
A116: 85 | B116: Blue files Big (50mm) | C116: 200 | D116: units | E116: Box of 10 | F116: cost per unit | H116: R 0.00
A117: 86 | B117: Cardboard files (70mm) | C117: 400 | D117: units | E117: Box of 10 | F117: cost per unit | H117: R 0.00
A118: 87 | B118: Business Card Holders Open 300 | C118: 50 | D118: units | E118: Per unit | F118: cost per unit | H118: R 0.00
A119: PVC POCKETS
A120: =A118+1 -> 88 | B120: A4 Plastic Sheet Protectors (100 in a pack) | C120: 50 | D120: packs | E120: packs | F120: cost per pack | H120: R 0.00
A121: LAMINATING POUCHES
A122: =A120+1 -> 89 | B122: Lamination Pouches A4 (100 in a pack) | C122: 30 | D122: packs | E122: per pack of 100 | F122: cost per pack | H122: =G122*C122 -> R 0.00
A123: =A122+1 -> 90 | B123: Lamination Pouches A3 (100 in a pack) | C123: 15 | D123: packs | E123: per pack of 100 | F123: cost per pack | H123: R 0.00
A124: =A123+1 -> 91 | B124: Lamination Pouches A5 (100 in a pack) | C124: 6 | D124: packs | E124: per pack of 100 | F124: cost per pack | H124: R 0.00
A125: SUSPENSION FILES
A126: =A124+1 -> 92 | B126: A4 Suspension Files (25 per box) BLUE | C126: 10 | D126: boxes | E126: per box | F126: cost per unit | H126: =G126*C126 -> R 0.00
A127: =A126+1 -> 93 | B127: Foolscap Suspension Files No. 505 (25 per box) BLUE | C127: 10 | D127: boxes | E127: per box | F127: cost per unit | H127: R 0.00
A128: COVER SHEET
A129: =A127+1 -> 94 | B129: Clear A4 Binding Cover - CLEAR Pack of 100 | C129: 60 | D129: packs | E129: 100 per pack | F129: cost per pack | H129: =G129*C129 -> R 0.00
A130: =A129+1 -> 95 | B130: Clear A4 Binding Back - Black Pack of 100 | C130: 30 | D130: packs | E130: 100 per pack | F130: cost per pack | H130: =G130*C130 -> R 0.00
A131: CREATE-A-COVER FILES
A132: =A130+1 -> 96 | B132: 2 Ring File 20mm Various colours (50 in a box) | C132: 10 | D132: boxes | E132: per boxes | F132: cost per box | H132: =G132*C132 -> R 0.00
A133: =A132+1 -> 97 | B133: 2 Ring File 25mm Various colours (50 in a box) | C133: 10 | D133: boxes | E133: per boxes | F133: cost per box | H133: R 0.00
A134: =A133+1 -> 98 | B134: 2 Ring File 40mm Various colours (20 in a box) | C134: 10 | D134: boxes | E134: per boxes | F134: cost per box | H134: R 0.00
A135: 99 | B135: 2 Ring File 50mm Various (20 in a box) | C135: 10 | D135: boxes | E135: per boxes | F135: cost per box | H135: R 0.00
A136: PVC INDEXES
A137: =A135+1 -> 100 | B137: PVC Indexes 1-10 blank (per pack of 10 x 10) | C137: 20 | D137: packs | E137: per pack of 10 | F137: cost per pack | H137: =G137*C137 -> R 0.00
A138: =A137+1 -> 101 | B138: PVC Indexes 1 - 31 Grey Numbered (per pack of 10 x 10) | C138: 20 | D138: packs | E138: per pack of 10 | F138: cost per pack | H138: R 0.00
A139: =A138+1 -> 102 | B139: PVC Indexes 1 - 31 Coloured Numbered (per pack of 10 x 10) | C139: 20 | D139: packs | E139: per pack of 10 | F139: cost per pack | H139: R 0.00
A140: 103 | B140: PVC Indexes 1 - 10 Numbered (per pack of 10 x 10) | C140: 20 | D140: packs | E140: per pack of 10 | F140: cost per pack | H140: R 0.00
A141: 104 | B141: PVC Indexes 1 - 12 Numbered (per pack of 10 x 10) | C141: 20 | D141: packs | E141: per pack of 10 | F141: cost per pack | H141: R 0.00
A142: 105 | B142: PVC Indexes Jan - Dec (per pack of 10 x 10) | C142: 20 | D142: packs | E142: per pack of 10 | F142: cost per pack | H142: R 0.00
A143: 106 | B143: PVC Indexes A - Z (per pack of 10 x 10) | C143: 20 | D143: packs | E143: per pack of 10 | F143: cost per pack | H143: R 0.00
A144: STAMPS
A145: =A143+1 -> 107 | B145: Commissioner of Oath x 2 | C145: 40 | E145: Per unit | F145: cost per unit | H145: =G145*C145 -> R 0.00
A146: LAMINATING MACHINES AND TAPE
A147: =A145+1 -> 108 | B147: Laminating Machine P-Touch PT2100VP | C147: 5 | E147: Per unit | F147: cost per unit | H147: R 0.00
A148: =A147+1 -> 109 | B148: Tape black on white 9mm TZ221 | C148: 15 | D148: units | E148: Per unit | F148: cost per unit | H148: R 0.00
A149: =A148+1 -> 110 | B149: Tape black on white 12mm TZ231 | C149: 15 | D149: units | E149: Per unit | F149: cost per unit | H149: R 0.00
A150: 111 | B150: Tape black on blue 9mm TZ521 | C150: 15 | D150: units | E150: Per unit | F150: cost per unit | H150: R 0.00
A151: 112 | B151: Tape black on blue 12mm TZ531 | C151: 15 | D151: units | E151: Per unit | F151: cost per unit | H151: R 0.00
A152: 113 | B152: Tape black on clear 18mm TZ141 | C152: 15 | D152: units | E152: Per unit | F152: cost per unit | H152: R 0.00
A153: 114 | B153: Tape black on white 18mm TZ241 | C153: 15 | D153: units | E153: Per unit | F153: cost per unit | H153: R 0.00
A154: 115 | B154: Tape black on yellow 9mm TZ621 | C154: 15 | D154: units | E154: Per unit | F154: cost per unit | H154: R 0.00
A155: 116 | B155: Tape black on yellow 12mm TZ631 | C155: 15 | D155: units | E155: Per unit | F155: cost per unit | H155: R 0.00
A156: 117 | B156: Tape black on red 12mm TZ431 | C156: 15 | D156: units | E156: Per unit | F156: cost per unit | H156: R 0.00
A157: BROTHER LAMINATING TAPE FOR EXISTING EQUIPMENT
A158: =A156+1 -> 118 | B158: Brother label tape black on white 9mm TZ221 | C158: 15 | D158: units | E158: Per unit | F158: cost per unit | H158: =G158*C158 -> R 0.00
A159: =A158+1 -> 119 | B159: Brother label tape black on white 12mm TZ231 | C159: 15 | D159: units | E159: Per unit | F159: cost per unit | H159: =G159*C159 -> R 0.00
A160: =A159+1 -> 120 | B160: Brother label tape black on blue 9mm TZ521 | C160: 15 | D160: units | E160: Per unit | F160: cost per unit | H160: R 0.00
A161: 121 | B161: Brother label tape black on blue 12mm TZ531 | C161: 15 | D161: units | E161: Per unit | F161: cost per unit | H161: R 0.00
A162: 122 | B162: Brother label tape black on clear 18mm TZ141 | C162: 15 | D162: units | E162: Per unit | F162: cost per unit | H162: R 0.00
A163: 123 | B163: Brother label tape black on white 18mm TZ241 | C163: 15 | D163: units | E163: Per unit | F163: cost per unit | H163: R 0.00
A164: 124 | B164: Brother label tape black on yellow 9mm TZ621 | C164: 15 | D164: units | E164: Per unit | F164: cost per unit | H164: R 0.00
A165: 125 | B165: Brother label tape black on yellow 12mm TZ631 | C165: 15 | D165: units | E165: Per unit | F165: cost per unit | H165: R 0.00
A166: 126 | B166: Brother label tape black on red 12mm TZ431 | C166: 15 | D166: units | E166: Per unit | F166: cost per unit | H166: R 0.00
A167: FLIP CHART PADS
A168: =A166+1 -> 127 | B168: Flip Chart Paper | C168: 200 | D168: units | E168: Per unit | F168: cost per unit | H168: =G168*C168 -> R 0.00
A169: MISCELLANOUS
A170: =A168+1 -> 128 | B170: Plastic Key Rings Display [100's] | C170: 18 | D170: packs | E170: per pack of 100 | F170: cost per pack | H170: =G170*C170 -> R 0.00
A171: PHOTOCOPY PAPER
A172: =A170+1 -> 129 | B172: A4 white photo copy paper 80g/m2 (5 reams in a box) | C172: 420 | D172: boxes | E172: boxes | F172: cost per box | H172: =G172*C172 -> R 0.00
A173: =A172+1 -> 130 | B173: A3 white photo copy paper 80g/m2 (5 reams in a box) | C173: 200 | D173: boxes | E173: boxes | F173: cost per box | H173: =G173*C173 -> R 0.00
A174: TROLLEYS
A175: =A173+1 -> 131 | B175: Tea Trolley General Purpose Trolley 3 shelves | C175: 7 | D175: units | E175: Per units | F175: cost per unit | H175: =G175*C175 -> R 0.00
A176: =A175+1 -> 132 | B176: Castor and Ladder FNH2/WSR Folding Nose Trolley (580 x 615 x 1143mm | C176: 3 | D176: units | E176: Per unit | F176: Cost per unit | H176: R 0.00
A177: BUSINESS CARDS (HIGH QUALITY)
A178: =A176+1 -> 133 | B178: TCTA Business cards (50 per pack) | C178: 100 | D178: packs | E178: 50 in a pack | F178: cost per pack | H178: =G178*C178 -> R 0.00
A179: ENVELOPES
A180: =A178+1 -> 134 | B180: TCTA Envelopes: A3 [original size is C3] | C180: 20 | D180: Boxes | E180: 200 in a box | F180: cost per box | H180: =G180*C180 -> R 0.00
A181: =A180+1 -> 135 | B181: TCTA Envelopes: A4 [original size is B6] | C181: 20 | D181: Boxes | E181: 200 in a box | F181: cost per box | H181: =G181*C181 -> R 0.00
A182: =A181+1 -> 136 | B182: TCTA Envelopes: A5 | C182: 20 | D182: Boxes | E182: 200 in a box | F182: cost per box | H182: R 0.00
A183: 137 | B183: TCTA Envelopes: standard | C183: 20 | D183: Boxes | E183: 200 in a box | F183: cost per box | H183: R 0.00
A184: CABLES AND CONNECTORS
A185: =A183+1 -> 138 | B185: HDMI Cables (1 meter) | C185: 80 | D185: units | E185: Per unit | F185: cost per unit | H185: =G185*C185 -> R 0.00
A186: =A185+1 -> 139 | B186: HDMI Cables (20 meters) | C186: 15 | D186: units | E186: Per unit | F186: cost per unit | H186: R 0.00
A187: =A186+1 -> 140 | B187: Wireless Presenter with Laser Pointer | C187: 24 | D187: units | E187: Per unit | F187: cost per unit | H187: R 0.00
A188: OFFICE SUPPLIES
A189: =A187+1 -> 141 | B189: EXTERNAL HARD DISC DRIVES (HDD) 5 TB | C189: 20 | D189: Units | E189: Per Unit | F189: cost per unit | H189: R 0.00
A190: =A189+1 -> 142 | B190: USB Version 3.2 Gen 1 (3.1 Gen 1) to SATA 6G 2.5” case. | C190: 220 | D190: Units | E190: Per Unit | F190: cost per unit | H190: R 0.00
A191: =A190+1 -> 143 | B191: Noise cancelling head set with USB connection and volume control button. | C191: 400 | D191: Units | E191: Per Unit | F191: cost per unit | H191: =G191*C191 -> R 0.00
A192: PRINTING
A193: =A191+1 -> 144 | B193: High quality printing and binding of documents (350 pages) | C193: 150 | D193: packs | E193: Per pack of 350 pages | F193: cost per pack | H193: R 0.00
A194: ALUMINIUM BAR CODES
A195: =A193+1 -> 145 | B195: Aluminium bar codes 39mm x 13mm | C195: 3500 | D195: pack | E195: Per pack of 500 | H195: R 0.00
A196: PRINTER CARTRIDGES (PROVISIONAL SUM)
A197: =A195+1 -> 146 | B197: Toner cartridges will change from time to time as this is based on the constant replacement of TCTA's desk top printers | C197: 1 | D197: 1 | E197: Per item | F197: Total contract provisional cost | G197: R75,000.00 | H197: =G197*C197 -> R 75,000.00
A198: DELIVERY COST
A199: =A197+1 -> 147 | B199: Delivery cost of stationery | C199: 150 | D199: Units | E199: Deliveries | F199: Cost per delivery | H199: R 0.00
A200: COST | H200: =SUM(H6:H197) -> R 75,000.00
... 3 more rows

Sheet Sheet3
